bitfinex/quotes_ETHUSD_20260217
["timestamp","ask_amount","ask_price","bid_price","bid_amount"]
[1771320694446,0.0011,1976.1,1975.9,0.49767517]
[1771320696274,0.0011,1976.3,1976.0,0.49767517]
[1771320699381,0.0011,1976.3,1976.0,1.76284593]
[1771320699553,0.0011,1976.4,1976.1,0.49767517]
[1771320699876,5.05854062,1976.9,1976.3,0.49767517]
[1771320701464,1.76009062,1977.0,1976.4,0.49767517]
[1771320701777,1.26459393,1977.0,1976.5,0.49767517]
[1771320702076,1.26439747,1977.3,1976.7,0.49767517]
[1771320702479,1.26447827,1977.1,1976.6,1.022]
[1771320702680,0.49549669,1977.0,1976.5,1.022]
[1771320703475,1.75996349,1977.2,1976.6,0.49767517]
[1771320703775,0.49549669,1977.4,1976.7,0.49767517]
[1771320704669,1.26435037,1977.3,1976.7,0.49767517]
[1771320705164,0.47198964,1977.6,1976.7,1.49450411]
[1771320705351,0.47198964,1977.6,1976.8,1.021]
[1771320705552,0.47198964,1977.6,1976.5,1.73832243]
[1771320705877,0.47198964,1977.4,1976.6,1.021]
[1771320706748,1.73634001,1977.3,1976.6,1.021]
[1771320707257,0.0011,1976.9,1976.6,2.28579693]
[1771320707461,5.9101542,1977.8,1976.8,0.47350411]
[1771320707660,0.0011,1977.0,1976.8,0.47350411]
[1771320707862,0.0011,1977.2,1976.8,0.47350411]
[1771320709977,0.0011,1977.2,1976.6,1.49450411]
[1771320710281,0.45773736,1977.2,1976.5,1.021]
[1771320711887,0.0011,1977.2,1976.6,0.46777879]
[1771320712750,0.0011,1977.2,1976.6,1.73255221]
[1771320713877,0.0011,1977.2,1976.6,0.46777879]
[1771320714054,0.0011,1977.2,1976.6,1.73255284]
[1771320714257,0.0011,1977.2,1976.7,0.46777879]
[1771320715163,0.0011,1977.2,1976.5,2.75258782]
[1771320715362,0.45773736,1977.2,1976.5,2.75258782]
[1771320715987,0.45773736,1977.2,1976.5,0.46777879]
[1771320716177,0.45773736,1977.2,1976.1,0.39]
[1771320716178,0.45773736,1977.2,1976.1,2.12284565]
[1771320716487,0.45773736,1977.2,1976.2,1.48777879]
[1771320717186,1.26447827,1977.1,1976.2,0.46777879]
[1771320717385,0.45663736,1977.0,1976.2,1.73282806]
[1771320717692,0.45663736,1977.0,1976.2,0.46777879]
[1771320718565,0.45663736,1977.0,1976.1,0.46777879]
[1771320719487,0.45663736,1976.8,1976.3,0.001]
[1771320720895,1.2646062,1976.9,1976.3,0.001]
[1771320721194,1.72124356,1976.9,1976.3,0.001]
[1771320721374,1.2646062,1976.9,1976.3,0.46877879]
[1771320721578,1.2646062,1976.9,1976.4,0.46777879]
[1771320721780,1.72123153,1977.0,1976.4,0.46777879]
[1771320723665,1.72123153,1977.0,1976.4,1.73265751]
[1771320723901,1.26459417,1977.0,1976.5,0.46777879]
[1771320724998,0.45663736,1976.9,1976.3,0.001]
[1771320725172,0.45663736,1976.9,1976.3,1.73376203]
[1771320725805,1.26467017,1976.8,1976.3,0.001]
[1771320726107,1.72130753,1976.8,1976.3,0.001]
[1771320727382,0.45663736,1976.7,1976.3,0.001]
[1771320728202,1.26479813,1976.6,1976.3,0.001]
[1771320728904,1.26479813,1976.6,1976.3,0.46877879]
[1771320729128,5.05865145,1976.9,1976.3,0.46877879]
[1771320729129,0.45663736,1976.9,1976.3,0.001]
[1771320730097,0.45663736,1976.8,1976.3,0.001]
[1771320730709,1.72137151,1976.7,1976.3,0.001]
[1771320731303,0.45663736,1976.6,1976.3,0.001]
[1771320731511,1.26473415,1976.7,1976.3,0.001]
[1771320732517,1.26473415,1976.7,1976.4,0.001]
[1771320734891,1.75364709,1976.7,1976.4,0.001]
[1771320735104,1.75364709,1976.7,1976.3,0.001]
[1771320735105,0.48891294,1976.6,1976.3,0.001]
[1771320736100,0.48891294,1976.6,1976.1,0.001]
[1771320737110,1.75377507,1976.5,1976.1,0.001]
[1771320740029,0.48891294,1976.4,1976.1,0.001]
[1771320740324,0.48891294,1976.4,1976.0,0.001]
[1771320741421,1.75390307,1976.3,1976.0,0.001]
[1771320741933,0.48891294,1976.2,1976.0,0.001]
[1771320742096,0.48891294,1976.2,1975.7,0.001]
[1771320745211,1.7540311,1976.1,1975.8,0.001]
[1771320746019,0.48891294,1976.0,1975.8,0.001]
[1771320747325,0.48891294,1976.0,1975.5,0.45948066]
[1771320747326,2.12824621,1975.9,1975.5,0.001]
[1771320748328,2.12824621,1975.9,1975.0,0.45848066]
[1771320748329,0.48891294,1975.7,1975.0,0.45848066]
[1771320749115,1.75435128,1975.6,1975.0,0.45848066]
[1771320749720,2.61835128,1975.6,1975.0,0.45848066]
[1771320750734,2.12943834,1975.6,1975.1,0.45848066]
[1771320752828,0.48891294,1975.5,1974.8,0.45848066]
[1771320753713,2.12943834,1975.6,1974.9,0.45848066]
[1771320753909,2.61835128,1975.6,1974.9,0.45848066]
[1771320755839,2.61835128,1975.6,1974.7,5.45501505]
[1771320755840,0.48891294,1975.5,1974.7,0.001]
[1771320756216,0.48891294,1975.5,1974.5,0.001]
[1771320757534,0.48891294,1975.5,1975.0,0.001]
[1771320757711,0.48891294,1975.5,1974.9,0.001]
[1771320757912,0.48891294,1975.3,1974.9,0.001]
[1771320758112,0.48891294,1975.1,1974.5,0.001]
[1771320758311,0.48891294,1975.1,1974.4,0.8532]
[1771320759313,0.48891294,1975.1,1974.3,0.001]
[1771320760739,0.48891294,1974.9,1974.3,0.001]
[1771320763049,1.75486392,1974.8,1974.3,0.001]
[1771320765543,1.26595098,1974.8,1974.3,0.001]
[1771320766316,1.26595098,1974.8,1974.3,0.48464762]
[1771320769558,0.48563878,1974.9,1974.3,0.48464762]
[1771320769923,0.48563878,1974.9,1974.3,0.001]
[1771320770119,0.48563878,1974.9,1974.4,0.001]
[1771320771958,1.26595098,1974.8,1974.4,0.001]
[1771320775163,1.7307144,1974.8,1974.4,0.001]
[1771320775744,1.26595098,1974.8,1974.4,0.001]
[1771320777276,5.49371491,1974.7,1974.2,0.001]
[1771320778184,2.5997144,1974.8,1974.2,0.001]
[1771320778385,5.49371491,1974.7,1974.2,0.001]
[1771320779066,5.49371491,1974.7,1973.8,0.4942149]
[1771320779270,0.46476342,1974.6,1973.8,0.4942149]
[1771320780175,1.26614332,1974.5,1973.8,0.4942149]
[1771320780479,1.73090674,1974.5,1973.8,0.4942149]
[1771320782478,1.73090674,1974.5,1974.3,0.001]
[1771320782775,1.26614332,1974.5,1973.9,0.4942149]
[1771320783093,1.26614332,1974.5,1974.2,0.001]
[1771320783953,1.73090674,1974.5,1974.2,0.001]
[1771320785077,1.26614332,1974.5,1974.2,0.001]
[1771320786799,5.0645733,1974.6,1974.2,0.001]
[1771320787000,5.06413727,1974.7,1974.2,0.4952149]
[1771320787164,1.26601509,1974.7,1974.2,0.4952149]
[1771320789005,0.8751,1974.8,1974.2,0.4952149]
[1771320789161,2.1411034,1974.8,1974.3,0.4942149]
[1771320790205,1.2671034,1974.8,1974.3,0.4942149]
[1771320792080,1.2671034,1974.8,1974.4,0.4942149]
[1771320792081,0.0011,1974.8,1974.4,0.4942149]
[1771320792278,0.0011,1974.9,1974.6,0.4942149]
[1771320794458,0.0011,1974.9,1974.6,1.76024765]
[1771320794665,0.0011,1974.9,1974.7,0.46648867]
[1771320794899,0.0011,1974.9,1974.5,7.22631404]
[1771320795205,0.0011,1974.9,1974.6,0.46648867]
[1771320795569,0.0011,1974.8,1974.6,0.46648867]
[1771320797579,0.0011,1975.1,1974.7,0.46648867]
[1771320797806,0.0011,1975.1,1974.8,0.46648867]
[1771320798109,0.49377444,1975.0,1974.3,0.001]
[1771320798272,0.49377444,1975.0,1973.8,0.70305839]
[1771320798273,0.49377444,1974.7,1973.7,0.46648867]
[1771320798464,5.98748935,1974.4,1973.7,0.46648867]
[1771320798665,0.49377444,1974.4,1973.7,0.46648867]
[1771320799086,1.26627158,1974.3,1973.7,0.46648867]
[1771320799464,1.26627158,1974.3,1973.8,0.46648867]
[1771320801295,0.49377444,1974.5,1973.8,0.46648867]
[1771320803501,1.26620745,1974.4,1973.8,0.46648867]
[1771320806282,1.26620745,1974.4,1973.9,0.46648867]
[1771320806480,1.26619304,1974.5,1973.9,0.46648867]
[1771320807587,1.75996748,1974.5,1973.9,0.46648867]
[1771320807777,1.75996748,1974.5,1973.9,0.46748867]
[1771320807971,0.0011,1974.3,1973.9,0.001]
[1771320810276,1.26737158,1974.3,1973.9,0.001]
[1771320811387,0.0011,1974.3,1973.9,0.46748867]
[1771320813882,0.0011,1974.3,1973.9,0.001]
[1771320814082,0.49487444,1974.3,1973.9,0.001]
[1771320814380,0.0011,1974.3,1973.9,0.001]
[1771320815001,0.0011,1974.3,1973.8,0.41198867]
[1771320816394,0.0011,1974.3,1974.0,0.46648867]
[1771320820113,0.0011,1974.3,1974.1,0.46648867]
[1771320820582,0.0011,1974.2,1974.1,0.46648867]
[1771320823187,0.0011,1974.2,1973.9,2.7229688]
[1771320823402,0.0011,1974.2,1974.0,0.46648867]
[1771320825788,0.0011,1974.2,1974.0,1.73294995]
[1771320826410,0.0011,1974.2,1974.0,0.46648867]
[1771320827489,0.0011,1974.2,1974.0,1.7329446]
[1771320828101,0.0011,1974.2,1974.1,0.47477272]
[1771320828325,0.0011,1974.2,1974.0,1.74122865]
[1771320829223,0.0011,1974.2,1974.0,0.47477272]
[1771320830221,0.0011,1974.2,1974.0,1.7412336]
[1771320830607,0.0011,1974.2,1974.1,0.48662147]
[1771320831496,0.0011,1974.2,1974.1,1.75302134]
[1771320834248,0.0011,1974.4,1974.1,1.75302134]
[1771320834249,0.0011,1974.4,1974.2,0.48662147]
[1771320835025,0.0011,1974.4,1974.3,0.992]
[1771320836130,0.0011,1974.6,1974.3,2.74489305]
[1771320836427,1.26573755,1975.2,1974.4,0.48662147]
[1771320836600,0.49992025,1975.1,1974.4,0.48662147]
[1771320837227,0.0011,1975.1,1974.4,0.48662147]
[1771320838015,0.0011,1975.1,1974.6,0.48662147]
[1771320838222,0.0011,1975.1,1974.7,0.992]
[1771320840247,0.0011,1975.1,1974.7,2.25799086]
[1771320841029,0.0011,1975.1,1974.7,0.992]
[1771320841247,0.49992025,1975.1,1974.7,0.992]
[1771320843951,0.0011,1975.0,1974.7,0.992]
[1771320844120,0.0011,1975.0,1974.6,1.26607619]
[1771320844324,5.49176851,1974.8,1974.4,0.39]
[1771320844526,0.49882025,1974.7,1974.4,0.39]
[1771320844826,0.49882025,1974.7,1974.0,0.48662147]
[1771320844827,0.49882025,1974.7,1974.2,0.992]
[1771320845722,6.75873867,1975.0,1974.1,0.991]
[1771320845723,0.49882025,1974.5,1974.1,0.991]
[1771320846556,1.76496884,1974.5,1974.1,0.991]
[1771320849472,1.76481207,1974.8,1974.1,2.74402008]
[1771320849829,0.49882025,1974.7,1974.1,2.74402008]
[1771320850952,0.49882025,1974.7,1974.1,1.47762147]
[1771320851140,0.49882025,1974.7,1974.1,0.991]
[1771320851538,0.49882025,1974.7,1974.1,2.25739468]
[1771320851934,0.49882025,1974.6,1974.1,2.25739468]
[1771320852655,1.76482344,1974.8,1974.1,2.25739468]
[1771320852839,0.49882025,1974.7,1974.1,2.25739468]
[1771320853661,0.49882025,1974.7,1974.1,2.7440106]
[1771320853867,1.76484335,1974.7,1974.1,2.7440106]
[1771320854161,1.2660231,1974.7,1974.1,2.7440106]
[1771320854460,1.71722745,1974.8,1974.1,2.7440106]
[1771320854658,1.71722745,1974.8,1974.2,0.47903079]
[1771320855740,0.45124498,1974.8,1974.2,0.47903079]
[1771320856060,1.7182141,1975.0,1974.3,1.74530237]
[1771320856532,0.0011,1974.6,1974.3,1.74530237]
[1771320859643,0.0011,1974.7,1974.4,0.47903079]
[1771320859845,0.0011,1974.7,1974.5,1.47303079]
[1771320861848,0.0011,1974.7,1974.6,1.2660792]
[1771320862551,0.0011,1974.9,1974.7,0.47903079]
[1771320862737,0.0011,1974.9,1974.6,1.2660792]
[1771320863165,0.0011,1974.9,1974.6,1.74510999]
[1771320864467,0.0011,1974.9,1974.6,1.2660792]
[1771320864654,0.0011,1974.9,1974.7,0.47903079]
[1771320866340,0.0011,1974.9,1974.8,0.998]
[1771320869848,0.0011,1974.9,1974.6,1.26705266]
[1771320870048,0.0011,1974.9,1974.8,1.0]
[1771320871154,0.0011,1974.9,1974.8,1.47903079]
[1771320871359,0.0011,1975.1,1974.8,1.47903079]
[1771320871974,0.0011,1975.1,1974.8,1.0]
[1771320878154,0.0011,1975.1,1974.2,0.001]
[1771320878155,5.49176851,1975.0,1974.2,0.001]
[1771320878355,0.45124498,1974.7,1974.2,1.003]
[1771320879081,0.45124498,1974.7,1974.2,2.26933023]
[1771320879296,1.26591691,1974.9,1974.2,8.24012953]
[1771320879586,1.71716189,1974.9,1974.2,8.24012953]
[1771320880084,0.45124498,1974.9,1974.3,0.48003079]
[1771320880285,1.26584417,1975.0,1974.3,0.48003079]
[1771320880458,0.45124498,1974.9,1974.3,0.48003079]
[1771320881262,1.71718766,1974.9,1974.3,0.001]
[1771320881468,1.71718766,1974.9,1974.4,0.001]
[1771320882188,0.45124498,1974.9,1974.4,0.001]
[1771320882693,1.7171398,1974.9,1974.4,0.001]
[1771320883995,1.26589482,1974.9,1974.4,0.48003079]
[1771320884496,0.48453362,1974.9,1974.4,0.001]
[1771320886569,1.26697341,1975.0,1974.4,1.7527001]
[1771320886768,0.48563362,1975.0,1974.4,1.7527001]
[1771320887667,0.48563362,1975.0,1974.5,0.48549265]
[1771320887668,0.0011,1975.0,1974.5,0.48549265]
[1771320888992,0.0011,1975.0,1974.6,1.75157185]
[1771320889384,0.0011,1975.0,1974.6,1.2660792]
[1771320889578,0.48563362,1975.0,1974.6,1.2660792]
[1771320890302,0.0011,1975.0,1974.6,1.73997798]
[1771320890481,0.0011,1975.0,1974.6,2.73997798]
[1771320891371,0.45863988,1975.0,1974.6,1.0]
[1771320892003,0.45863988,1975.0,1974.5,1.001]
[1771320893303,0.45863988,1975.0,1974.5,2.26708023]
[1771320893511,0.0011,1975.0,1974.5,2.74097901]
[1771320893719,0.0011,1975.0,1974.7,0.001]
[1771320894415,1.2669247,1975.0,1974.7,0.001]
[1771320894583,0.0011,1975.0,1974.7,0.001]
[1771320894783,1.2669327,1975.0,1974.7,0.001]
[1771320895185,1.72447258,1975.0,1974.7,0.001]
[1771320895573,0.45863988,1975.0,1974.7,0.001]
[1771320897005,0.0011,1975.0,1974.7,0.47489878]
[1771320897601,0.0011,1975.0,1974.7,1.74087431]
[1771320897781,0.0011,1975.0,1974.7,1.26697553]
[1771320901606,0.0011,1975.0,1974.7,0.47489878]
[1771320901828,0.0011,1975.0,1974.7,0.001]
[1771320902012,0.45863988,1975.0,1974.7,0.001]
[1771320902179,0.45753988,1974.9,1974.5,0.001]
[1771320902878,0.45753988,1974.7,1974.3,0.001]
[1771320903504,0.45753988,1974.5,1974.3,0.001]
[1771320904587,1.2660792,1974.6,1974.0,0.001]
[1771320904588,0.45753988,1974.2,1974.0,0.001]
[1771320905011,0.45753988,1974.4,1974.0,0.001]
[1771320905681,0.45753988,1974.4,1974.0,0.002]
[1771320906006,1.26617633,1974.5,1974.0,0.002]
[1771320906180,1.72371621,1974.5,1974.0,0.002]
[1771320906380,1.72371621,1974.5,1974.3,0.001]
[1771320907691,0.45753988,1974.5,1974.3,0.001]
[1771320907894,0.45753988,1974.6,1974.3,0.001]
[1771320909387,0.45753988,1974.6,1974.3,0.002]
[1771320910111,1.72367211,1974.6,1974.3,0.002]
[1771320911615,0.45753988,1974.6,1974.3,0.002]
[1771320911823,1.7235267,1974.8,1974.3,0.002]
[1771320916726,1.2670326,1974.9,1974.3,0.48243899]
[1771320916910,0.0011,1974.9,1974.3,0.48243899]
[1771320917510,0.0011,1974.9,1974.3,0.48143899]
[1771320918131,0.0011,1974.9,1974.5,0.48043899]
[1771320918425,0.0011,1974.8,1974.5,0.48043899]
[1771320918627,0.0011,1974.8,1974.6,0.001]
[1771320919033,0.0011,1974.8,1974.7,0.001]
[1771320920735,0.0011,1974.8,1974.7,0.48143899]
[1771320921636,0.0011,1975.0,1974.7,0.48043899]
[1771320922005,0.0011,1975.2,1974.6,0.48043899]
[1771320922610,0.0011,1975.2,1974.8,0.48043899]
[1771320923334,0.0011,1975.5,1975.2,0.48043899]
[1771320923504,0.0011,1975.5,1975.0,1.47743899]
[1771320923836,0.0011,1975.5,1974.6,1.26602949]
[1771320923837,0.0011,1975.5,1974.9,0.997]
[1771320924006,0.0011,1975.5,1975.0,0.48043899]
[1771320924715,0.0011,1975.5,1975.1,1.26575869]
[1771320925114,0.0011,1975.5,1975.1,1.74619768]
[1771320927811,0.0011,1975.5,1975.1,1.26575869]
[1771320928031,0.0011,1975.5,1975.1,1.74619768]
[1771320928406,0.0011,1975.5,1975.2,0.48043899]
[1771320929947,0.0011,1975.5,1975.3,1.26563053]
[1771320930147,0.0011,1975.4,1975.3,1.26563053]
[1771320932041,0.0011,1975.4,1975.3,2.26463053]
[1771320934230,0.0011,1975.4,1975.3,2.72769561]
[1771320936140,0.0011,1975.4,1975.3,0.999]
[1771320936344,0.0011,1975.4,1975.3,2.26463053]
[1771320938040,0.0011,1975.6,1975.3,2.72769561]
[1771320938529,0.0011,1975.6,1975.4,0.46306508]
[1771320939214,0.0011,1975.8,1975.4,0.46306508]
[1771320940018,0.0011,1975.8,1975.5,1.72856748]
[1771320940325,0.0011,1975.8,1975.6,1.003]
[1771320941344,0.0011,1975.8,1975.6,1.46606508]
[1771320942139,0.0011,1975.8,1975.6,2.73145026]
[1771320942345,0.0011,1975.8,1975.7,0.46306508]
[1771320943345,0.45490895,1976.3,1975.7,0.46306508]
[1771320944052,1.71990327,1976.3,1975.7,0.46306508]
[1771320944255,0.0011,1976.0,1975.8,1.26531025]
[1771320944414,0.0011,1976.0,1975.9,1.005]
[1771320947545,0.0011,1976.3,1975.9,2.27024621]
[1771320947734,0.0011,1976.3,1975.9,2.27024102]
[1771320949350,0.45820334,1976.3,1975.9,1.005]
[1771320950218,0.45820334,1976.3,1975.7,1.26535381]
[1771320950422,0.49724029,1976.2,1975.5,5.06190069]
[1771320950633,0.49724029,1976.2,1975.6,1.005]
[1771320954783,1.76230732,1976.2,1975.7,1.26537429]
[1771320955668,0.49724029,1976.2,1975.7,1.26537429]
[1771320955870,0.49724029,1976.2,1975.7,1.26637429]
[1771320956044,0.0011,1976.1,1975.7,1.26637429]
[1771320956974,0.0011,1976.1,1975.8,0.47385509]
[1771320957974,0.0011,1976.1,1975.7,1.74022938]
[1771320959669,0.49834029,1976.1,1975.7,1.26637429]
[1771320959873,0.49834029,1976.1,1975.8,1.009]
[1771320960455,0.49834029,1976.1,1975.7,0.001]
[1771320960971,1.76255054,1975.8,1975.7,0.001]
[1771320961272,0.49724029,1975.7,1975.5,0.001]
[1771320961873,1.26531025,1975.8,1975.1,0.001]
[1771320961874,0.49724029,1975.5,1975.1,0.001]
[1771320962051,1.76255054,1975.8,1975.2,0.001]
[1771320962259,0.49724029,1975.7,1975.2,0.001]
[1771320962459,0.49724029,1975.7,1975.1,0.001]
[1771320962661,0.49724029,1975.5,1975.1,1.26774002]
[1771320962865,0.49724029,1975.5,1975.1,0.002]
[1771320965280,0.49724029,1975.5,1975.2,0.001]
[1771320965588,1.26541539,1975.7,1975.2,0.001]
[1771320965786,0.49724029,1975.6,1975.2,0.001]
[1771320966580,0.49724029,1975.6,1975.3,0.001]
[1771320967256,1.76270681,1975.6,1975.3,0.001]
[1771320968182,1.76270681,1975.6,1975.3,0.002]
[1771320968483,0.49724029,1975.5,1975.3,0.001]
[1771320970491,1.26556646,1975.4,1975.3,0.001]
[1771320970781,1.76280675,1975.4,1975.3,0.001]
[1771320971355,1.26555532,1975.5,1975.3,0.001]
[1771320971552,1.76273143,1975.6,1975.3,0.002]
[1771320971778,0.49724029,1975.5,1975.3,0.002]
[1771320973573,1.76272186,1975.6,1975.3,0.002]
[1771320975089,1.76403663,1975.8,1975.3,0.002]
[1771320976361,0.49868282,1975.7,1975.3,0.002]
[1771320977391,1.26543834,1975.6,1975.4,0.001]
[1771320978181,1.76410381,1975.7,1975.4,0.001]
[1771320978775,1.26542099,1975.7,1975.4,0.001]
[1771320978977,1.26542099,1975.7,1975.5,0.001]
[1771320980594,1.76410381,1975.7,1975.5,0.001]
[1771320980756,1.76410381,1975.7,1975.3,0.001]
[1771320980757,0.49868282,1975.6,1975.3,0.001]
[1771320981091,0.49978282,1975.6,1975.3,0.001]
[1771320982583,0.0011,1975.6,1975.3,0.001]
[1771320984293,0.0011,1975.6,1975.3,0.48439603]
[1771320985164,0.0011,1975.6,1975.3,0.001]
[1771320987303,0.49978282,1975.6,1975.3,0.001]
[1771320988468,0.0011,1975.6,1975.3,0.001]
[1771320994201,0.0011,1975.6,1975.4,0.001]
[1771320994406,0.0011,1975.5,1975.4,0.001]
[1771320995085,0.0011,1975.5,1975.3,0.001]
[1771320996002,0.49978282,1975.5,1975.3,0.001]
[1771320996504,1.76534556,1975.5,1975.3,0.001]
[1771320998007,1.26666274,1975.5,1975.3,0.001]
[1771321006322,0.0011,1975.5,1975.3,0.45525146]
[1771321006696,0.0011,1975.5,1975.3,0.001]
[1771321007708,5.96049941,1975.4,1975.0,0.001]
[1771321008009,0.47591079,1975.3,1975.0,0.001]
[1771321008512,1.26569461,1975.2,1975.0,0.001]
[1771321009108,1.26569461,1975.2,1975.1,0.001]
[1771321009611,1.2667182,1975.4,1975.1,0.001]
[1771321010921,1.75162003,1975.4,1975.1,0.001]
[1771321017117,1.2667182,1975.4,1975.1,0.001]
[1771321020398,1.2667182,1975.4,1975.2,0.001]
[1771321020604,0.0011,1975.3,1975.2,0.001]
[1771321021313,0.0011,1975.3,1974.9,0.40571763]
[1771321022219,0.0011,1975.3,1974.9,0.34491763]
[1771321023309,0.0011,1975.3,1974.9,0.001]
[1771321029632,0.0011,1975.3,1974.9,0.46351763]
[1771321033536,0.0011,1975.3,1975.0,0.001]
[1771321033705,0.0011,1975.2,1975.0,0.001]
[1771321036535,1.26679461,1975.2,1975.0,0.001]
[1771321038840,0.0011,1975.2,1975.0,0.001]
[1771321042010,0.0011,1975.2,1974.8,0.46937644]
[1771321042011,0.46788162,1975.1,1974.8,0.001]
[1771321042430,0.46788162,1974.9,1974.5,0.001]
[1771321043722,0.46788162,1975.1,1974.5,0.001]
[1771321043947,0.0011,1975.2,1974.6,0.46837644]
[1771321044467,0.46898162,1975.2,1974.6,1.73445388]
[1771321044625,0.0011,1975.2,1974.7,0.46837644]
[1771321045448,0.46898162,1975.2,1974.8,0.001]
[1771321045619,0.0011,1975.1,1974.8,0.001]
[1771321046142,0.46788162,1975.0,1974.7,0.001]
[1771321048147,1.26588688,1974.9,1974.7,0.001]
[1771321048447,1.7337685,1974.9,1974.7,0.001]
[1771321048822,1.26588688,1974.9,1974.7,0.001]
[1771321054534,1.26685869,1975.1,1974.7,0.46937644]
[1771321054737,0.0011,1975.1,1974.7,0.46937644]
[1771321057134,0.0011,1975.1,1974.8,0.001]
[1771321057557,0.0011,1975.1,1974.8,0.46937644]
[1771321058457,0.0011,1975.1,1974.8,0.001]
[1771321058759,1.26582278,1975.0,1974.8,0.001]
[1771321058947,1.7337044,1975.0,1974.7,0.001]
[1771321059147,1.26582278,1975.0,1974.7,0.001]
[1771321062059,5.53226736,1975.1,1974.7,0.001]
[1771321064962,5.06438574,1975.1,1974.7,0.001]
[1771321065562,5.54450028,1975.1,1974.7,0.001]
[1771321067142,0.0011,1976.3,1975.2,0.92923847]
[1771321067377,0.0011,1976.3,1975.0,5.49017651]
[1771321067378,10.55149308,1976.3,1975.5,0.48269027]
[1771321067561,0.5772852,1976.1,1975.5,0.48269027]
[1771321067857,5.49017651,1975.7,1974.9,0.48269027]
[1771321068052,0.892,1975.6,1974.9,0.48269027]
[1771321068682,0.892,1975.6,1975.1,0.48269027]
[1771321069491,0.892,1975.5,1975.3,0.48269027]
[1771321070182,0.892,1975.5,1975.3,0.46479603]
[1771321072557,0.912,1975.9,1975.4,0.46479603]
[1771321072757,0.891,1975.8,1975.4,0.46479603]
[1771321073993,1.26518244,1976.0,1975.4,0.46479603]
[1771321074174,1.803,1975.9,1975.4,0.46479603]
[1771321074363,2.00504127,1975.9,1975.2,1.73049064]
[1771321074563,0.20204127,1975.8,1975.2,1.73049064]
[1771321074976,3.06829358,1975.9,1975.3,0.46479603]
[1771321075894,3.26808442,1975.9,1975.3,0.46479603]
[1771321077998,2.00279084,1975.9,1975.4,1.26556646]
[1771321078196,3.06824763,1975.9,1975.4,1.73036249]
[1771321081196,3.06824763,1975.9,1975.4,1.73136249]
[1771321081498,0.0011,1975.8,1975.4,1.73136249]
[1771321082683,1.803,1975.7,1975.5,0.46479603]
[1771321086790,1.803,1975.7,1975.5,1.73029598]
[1771321094114,1.803,1975.7,1975.6,0.001]
[1771321095007,1.8041,1975.7,1975.6,0.001]
[1771321098090,0.0011,1975.8,1975.7,0.48427986]
[1771321098091,0.9131,1975.8,1975.7,0.48427986]
[1771321098292,1.8031,1975.8,1975.7,0.48427986]
[1771321099388,3.06841317,1975.8,1975.5,0.001]
[1771321104115,3.06841317,1975.8,1975.5,0.48527986]
[1771321105898,3.06841317,1975.8,1975.5,0.001]
[1771321106097,5.48752914,1975.6,1975.1,0.001]
[1771321106309,0.1672852,1975.7,1975.1,0.48527986]
[1771321107125,0.1683852,1975.7,1975.6,0.001]
[1771321107313,0.1683852,1975.7,1975.1,0.48527986]
[1771321107489,0.1683852,1975.7,1975.5,0.001]
[1771321109124,1.26543834,1975.6,1975.3,0.001]
[1771321109338,0.896,1975.5,1975.3,0.001]
[1771321109632,0.896,1975.5,1975.1,0.001]
[1771321109793,6.75296748,1975.6,1975.1,0.48527986]
[1771321109993,1.809,1975.5,1975.2,0.48427986]
[1771321111016,0.897,1975.4,1975.2,0.48427986]
[1771321111217,1.26652139,1975.7,1975.2,0.48427986]
[1771321111416,1.809,1975.6,1975.2,0.48427986]
[1771321112316,1.26652139,1975.7,1975.2,0.48427986]
[1771321112519,1.81,1975.6,1975.3,0.48427986]
[1771321113820,0.0011,1975.7,1975.4,0.48427986]
[1771321114025,0.897,1975.6,1975.4,0.48427986]
[1771321116637,0.0011,1975.9,1975.4,6.75306461]
[1771321116837,0.897,1975.8,1975.5,0.48427986]
[1771321117128,0.0011,1976.0,1975.8,0.48427986]
[1771321117325,0.897,1975.9,1975.8,0.48427986]
[1771321117623,0.897,1975.9,1975.5,0.48427986]
[1771321118629,0.897,1975.8,1975.6,0.48427986]
[1771321121028,0.8981,1975.8,1975.6,0.48427986]
[1771321122526,0.8981,1975.8,1975.7,0.48427986]
[1771321123931,0.0011,1975.8,1975.5,0.48527986]
[1771321124131,0.0011,1975.8,1975.6,0.48427986]
[1771321124431,0.897,1975.7,1975.6,0.48427986]
[1771321129111,0.897,1975.7,1975.5,0.001]
[1771321131211,1.26645255,1975.8,1975.5,0.46027518]
[1771321131422,0.897,1975.7,1975.5,0.46027518]
[1771321135843,0.898,1975.6,1975.5,0.46027518]
[1771321137134,0.898,1975.6,1975.5,0.001]
[1771321139133,0.898,1975.6,1975.5,0.46027518]
[1771321140345,0.0011,1975.8,1975.6,0.45927518]
[1771321140545,0.898,1975.7,1975.5,0.001]
[1771321141664,2.16339807,1975.7,1975.5,0.001]
[1771321142323,0.898,1975.7,1975.5,0.001]
[1771321142530,0.899,1975.6,1975.5,0.46027518]
[1771321144640,0.899,1975.6,1975.5,0.001]
[1771321144641,2.16443834,1975.6,1975.5,0.001]
[1771321147461,0.899,1975.6,1975.5,0.001]
[1771321147865,2.16443834,1975.6,1975.5,0.001]
[1771321150265,2.16443834,1975.6,1975.3,0.001]
[1771321150761,0.899,1975.6,1975.3,0.46027518]
[1771321153372,1.26644407,1975.8,1975.3,0.46027518]
[1771321153746,0.904,1975.7,1975.3,0.46027518]
[1771321154157,0.904,1975.7,1975.4,0.47192155]
[1771321154377,1.26644407,1975.8,1975.4,0.47192155]
[1771321154669,0.904,1975.6,1975.4,0.47192155]
[1771321155551,1.26641693,1975.8,1975.4,0.47192155]
[1771321155750,0.904,1975.5,1975.4,0.47192155]
[1771321156760,0.904,1975.5,1975.4,0.47292155]
[1771321156953,0.904,1975.5,1975.4,1.73848801]
[1771321157376,0.0011,1975.8,1975.5,0.47192155]
[1771321157557,0.904,1975.6,1975.5,0.47192155]
[1771321160882,0.0011,1975.8,1975.5,0.47192155]
[1771321161082,0.904,1975.7,1975.5,0.47192155]